fUST/lending_fUST_20250428
["ID","MTS","AMOUNT","RATE_DAILY","PERIOD"]
[359211342,1745819438788,-195.0,0.000318,2]
[359211345,1745819438797,-195.0,0.000318,4]
[359211347,1745819438807,-195.0,0.000318,7]
[359211349,1745819438816,-197.75470002,0.000318,14]
[359211351,1745819438825,-538.08738993,0.0003189,2]
[359211353,1745819438835,-198.0,0.000319,7]
[359211355,1745819438844,-199.9059662,0.000319,14]
[359211357,1745819438853,-500.0,0.00031973,5]
[359211359,1745819438862,-300.0,0.00031973,5]
[359211360,1745819438872,-500.0,0.00031973,5]
[359211361,1745819438882,-160.0,0.00031979,2]
[359211362,1745819438891,-500.0,0.00031989,2]
[359211363,1745819438901,-500.0,0.00031989,2]
[359211364,1745819438912,-203.34521228,0.00031989,2]
[359211365,1745819438921,-500.0,0.00031989,2]
[359211366,1745819438931,-500.0,0.00031989,2]
[359211367,1745819438940,-575.76530335,0.00031989,2]
[359211368,1745819438950,-500.0,0.00031989,2]
[359211369,1745819438959,-500.0,0.00031989,2]
[359211370,1745819438969,-578.86306246,0.00031989,2]
[359211371,1745819438978,-500.0,0.00031989,2]
[359211372,1745819438987,-500.0,0.00031989,2]
[359211373,1745819438997,-500.0,0.00031989,2]
[359211374,1745819439007,-984.39557,0.00031989,2]
[359211375,1745819439019,-503.38,0.0003199,3]
[359211376,1745819439029,-308.66,0.0003199,120]
[359211377,1745819439039,-213565.8157231,0.0003199,2]
[359211382,1745819441013,-331.0,0.0003199,2]
[359211383,1745819441025,-1013.9836,0.0003199,2]
[359211391,1745819443698,-2954.79151319,0.0003199,2]
[359211392,1745819443709,-550.73773191,0.0003199,2]
[359211393,1745819443723,-545.24708926,0.0003199,2]
[359211394,1745819443735,-3130.08548702,0.0003199,2]
[359211395,1745819443747,-1711.53105352,0.0003199,2]
[359211396,1745819443758,-210.8570914,0.00031999,2]
[359211398,1745819443767,-500.0,0.00031999,2]
[359211399,1745819443778,-602.56996588,0.00031999,2]
[359211400,1745819443787,-308.18493918,0.00031999,2]
[359211401,1745819443796,-21080.88931487,0.00032,60]
[359211402,1745819443807,-4549.99999025,0.00032,60]
[359211403,1745819443823,-993.24590438,0.00032,60]
[359211411,1745819446716,-23381.1912778,0.00032,60]
[359211412,1745819446774,-5722.2042792,0.00032,60]
[359211436,1745820348160,-151.0,0.00018585,2]
[359211437,1745820348181,-191.904501,0.00025758,2]
[359211438,1745820348202,-335.3980576,0.00025829,2]
[359211439,1745820348224,-191.37972228,0.000265,2]
[359211440,1745820348252,-158.04,0.000266,31]
[359211441,1745820348275,-271.7733435,0.000269,7]
[359211442,1745820348299,-300.0,0.0002694,2]
[359211443,1745820348321,-206.39347359,0.0002694,2]
[359211467,1745820441096,-993.60652641,0.0002694,2]
[359211468,1745820441119,-300.0,0.0002694,2]
[359211469,1745820441142,-88.94807742,0.0002694,2]
[359211470,1745820443114,-211.05192258,0.0002694,2]
[359211471,1745820443137,-73.73748804,0.00026941,2]
[359211472,1745820447080,-312.00337408,0.00026941,2]
[359211508,1745820554103,-300.0,0.00026078,2]
[359211509,1745820554124,-131.31277462,0.00026079,2]
[359211565,1745820631925,-206.339172,0.00026063,2]
[359211566,1745820631935,-240.0,0.00026078,2]
[359211567,1745820631945,-1200.0,0.00026078,2]
[359211568,1745820631955,-35419.90718328,0.00026079,2]
[359211569,1745820631964,-685.09630925,0.000267,2]
[359211570,1745820631973,-628.62102042,0.000268,2]
[359211572,1745820631983,-262.71423205,0.000269,7]
[359211573,1745820631992,-24514.25913788,0.00026941,2]
[359211574,1745820632001,-182.0,0.00027,2]
[359211575,1745820632011,-250.0,0.00027297,2]
[359211576,1745820632020,-1000.0,0.00027297,2]
[359211577,1745820632029,-262.71423197,0.00027348,7]
[359211578,1745820632039,-500.0,0.00027367,2]
[359211579,1745820632049,-502.28692997,0.00027367,2]
[359211580,1745820632059,-500.0,0.00027367,2]
[359211581,1745820632068,-500.0,0.00027367,2]
[359211582,1745820632077,-500.0,0.00027367,2]
[359211583,1745820632087,-300.0,0.00027367,2]
[359211584,1745820632096,-223.873347,0.00027397,120]
[359211585,1745820632105,-995.567572,0.00027397,2]
[359211586,1745820632114,-1174.13145068,0.00027397,2]
[359211587,1745820632123,-262.71423197,0.00027797,7]
[359211588,1745820632132,-262.71423197,0.00028245,7]
[359211589,1745820632141,-500.0,0.00028333,5]
[359211590,1745820632150,-1680.0,0.00028346,2]
[359211591,1745820632159,-500.0,0.000285,5]
[359211592,1745820632168,-628.62102042,0.00028575,2]
[359211593,1745820632177,-262.71423197,0.00028693,8]
[359211594,1745820632187,-158.04,0.000287,31]
[359211596,1745820632196,-158.04,0.000287,31]
[359211597,1745820632205,-300.37169025,0.00028976,2]
[359211599,1745820632214,-500.0,0.00028976,2]
[359211601,1745820632223,-500.0,0.00028976,2]
[359211602,1745820632232,-500.0,0.00028976,2]
[359211603,1745820632242,-500.0,0.00028976,2]
[359211604,1745820632251,-500.0,0.00028976,2]
[359211605,1745820632259,-500.0,0.00028976,2]
[359211606,1745820632269,-500.0,0.00028976,2]
[359211607,1745820632278,-500.0,0.00028976,2]
[359211608,1745820632289,-500.0,0.00028976,2]
[359211609,1745820632299,-623.21573255,0.00028976,2]
[359211610,1745820632308,-500.0,0.00028976,2]
[359211611,1745820632318,-500.0,0.00028976,2]
[359211612,1745820632327,-500.0,0.00028976,2]
[359211613,1745820632336,-500.0,0.00029,4]
[359211614,1745820632345,-500.0,0.00029,5]
[359211615,1745820632355,-500.0,0.00029,5]
[359211616,1745820632364,-600.0,0.00029011,5]
[359211617,1745820632372,-262.71423197,0.00029141,8]
[359211618,1745820632382,-194.56,0.000293,2]
[359211619,1745820632391,-262.71423197,0.0002959,8]
[359211620,1745820632400,-348.0,0.0003,2]
[359211621,1745820632409,-262.71423197,0.00030038,9]
[359211622,1745820632418,-628.62102042,0.00030351,2]
[359211623,1745820632428,-262.71423197,0.00030486,9]
[359211624,1745820632437,-900.0,0.00030654,5]
[359211625,1745820632447,-158.04,0.000308,31]
[359211626,1745820632456,-158.04,0.000308,31]
[359211627,1745820632466,-936.0,0.00030811,2]
[359211628,1745820632475,-262.71423197,0.00030934,9]
[359211629,1745820632485,-1000.0,0.00031,120]
[359211630,1745820632495,-151.0,0.00031106,2]
[359211631,1745820632503,-207.4,0.00031106,2]
[359211632,1745820632512,-262.71423197,0.00031383,9]
[359211633,1745820632521,-160.0,0.0003149,2]
[359211634,1745820632531,-318.0053915,0.00031673,2]
[359211635,1745820632540,-555.26348532,0.0003179,2]
[359211636,1745820632549,-555.2634853,0.00031818,2]
[359211637,1745820632559,-262.71423197,0.00031831,10]
[359211638,1745820632567,-555.2634853,0.00031845,2]
[359211639,1745820632579,-555.2634853,0.00031873,2]
[359211640,1745820632589,-15856.88253169,0.00031877,14]
[359211641,1745820632599,-54372.0031484,0.00031878,2]
[359211642,1745820632608,-54372.0031484,0.0003189,2]
[359211643,1745820632618,-300508.11755248,0.00031899,2]
[359211644,1745820632631,-34372.14913167,0.00031899,2]
[359211654,1745820637729,-184.54604172,0.000269,2]
[359211655,1745820637739,-500.0,0.00031877,2]
[359211656,1745820637748,-500.0,0.00031877,2]
[359211657,1745820637759,-347.61031815,0.00031877,2]
[359211658,1745820637769,-295.98875415,0.00031877,2]
[359211659,1745820637780,-665118.73331585,0.00031899,2]
[359211660,1745820637791,-151.0,0.00031899,7]
[359211661,1745820637805,-49386.76170844,0.000319,10]
[359211662,1745820637814,-421.20781996,0.000319,10]
[359211663,1745820637824,-555.2634853,0.000319,2]
[359211664,1745820637835,-840.59878455,0.000319,10]
[359211665,1745820637845,-223.873347,0.00031963,120]
[359211666,1745820637855,-151.0,0.00031969,7]
[359211667,1745820637867,-151.0,0.00031969,7]
[359211668,1745820637879,-223.08631705,0.00031969,2]
[359211669,1745820637891,-54372.0031484,0.00031969,2]
[359211670,1745820637901,-500.77378023,0.00031973,5]
[359211671,1745820637910,-500.0,0.00031973,5]
[359211672,1745820637920,-500.63535154,0.00031973,5]
[359211673,1745820637929,-500.0,0.00031973,5]
[359211675,1745820637938,-500.0,0.00031973,5]
[359211677,1745820637948,-610.73069903,0.00031973,5]
[359211679,1745820637957,-500.0,0.00031973,5]
[359211680,1745820637966,-521.34059975,0.00031973,5]
[359211681,1745820637976,-501.67699737,0.00031973,5]
[359211682,1745820637985,-151.0,0.0003198,7]
[359211683,1745820637994,-157.911104,0.0003198,7]
[359211684,1745820638003,-163116.009445,0.0003198,2]
[359211685,1745820638013,-500.0,0.00031989,2]
[359211686,1745820638024,-151.0,0.0003199,7]
[359211687,1745820638035,-151.0,0.0003199,7]
[359211688,1745820638046,-151.0,0.0003199,7]
[359211689,1745820638055,-299.698548,0.0003199,7]
[359211690,1745820638064,-151.0,0.0003199,7]
[359211691,1745820638073,-151.0,0.0003199,7]
[359211692,1745820638083,-151.0,0.0003199,7]
[359211693,1745820638091,-151.0,0.0003199,7]
[359211694,1745820638100,-151.0,0.0003199,7]
[359211695,1745820638110,-151.0,0.0003199,7]
[359211696,1745820638120,-267.398665,0.0003199,7]
[359211697,1745820638129,-267.398665,0.0003199,7]
[359211698,1745820638139,-157.152801,0.0003199,7]
[359211699,1745820638151,-231.109626,0.0003199,7]
[359211700,1745820638160,-151.0,0.0003199,7]
[359211701,1745820638170,-152.031868,0.0003199,7]
[359211702,1745820638179,-213.744115,0.0003199,2]
[359211703,1745820638188,-213.744115,0.0003199,2]
[359211704,1745820638197,-151.0,0.0003199,7]
[359211705,1745820638207,-151.0,0.0003199,7]
[359211706,1745820638217,-151.0,0.0003199,7]
[359211707,1745820638227,-151.0,0.0003199,7]
[359211708,1745820638237,-151.0,0.0003199,7]
[359211709,1745820638246,-152.809064,0.0003199,7]
[359211710,1745820638256,-151.0,0.0003199,7]
[359211711,1745820638265,-240.085829,0.0003199,7]
[359211712,1745820638275,-882.67,0.0003199,3]
[359211713,1745820638284,-213106.89979127,0.00032,60]
[359211714,1745820638294,-33600.0,0.00032,4]
[359211715,1745820638303,-157.171474,0.00032,7]
[359211716,1745820638312,-158.410347,0.00032,7]
[359211717,1745820638321,-151.0,0.00032,7]
[359211718,1745820638330,-154.110854,0.00032,7]
[359211719,1745820638339,-151.0,0.00032,7]
[359211720,1745820638348,-159.123473,0.00032,7]
[359211721,1745820638357,-151.0,0.00032,7]
[359211722,1745820638367,-154.84383,0.00032,7]
[359211723,1745820638376,-151.0,0.00032,7]
[359211724,1745820638386,-151.0,0.00032,7]
[359211725,1745820638397,-267.398665,0.00032,7]
[359211726,1745820638406,-267.398665,0.00032,7]
[359211727,1745820638415,-151.0,0.00032,7]
[359211728,1745820638425,-213.744115,0.00032,2]
[359211729,1745820638434,-213.744115,0.00032,2]
[359211730,1745820638443,-157.88347,0.00032,7]
[359211731,1745820638454,-152.85446,0.00032,7]
[359211732,1745820638463,-151.0,0.00032,7]
[359211733,1745820638473,-153.691219,0.00032,7]
[359211734,1745820638482,-151.0,0.00032,7]
[359211735,1745820638492,-151.0,0.00032,7]
[359211736,1745820638502,-151.0,0.00032,7]
[359211737,1745820638511,-151.0,0.000321,17]
[359211738,1745820638521,-628.62102042,0.00032126,2]
[359211739,1745820638530,-160.0,0.00032174,2]
[359211740,1745820638540,-151.0,0.000322,18]
[359211741,1745820638549,-186.712,0.00032226,31]
[359211742,1745820638558,-262.71423197,0.00032279,10]
[359211743,1745820638567,-1200.0,0.00032298,5]
[359211744,1745820638577,-151.0,0.000323,16]
[359211745,1745820638586,-151.0,0.000323,19]
[359211746,1745820638596,-151.0,0.000324,11]
[359211747,1745820638605,-151.0,0.00032475,2]
[359211748,1745820638615,-210.81104628,0.00032475,2]
[359211749,1745820638624,-151.0,0.000325,10]
[359211750,1745820638634,-4099.223309,0.00032533,4]
[359211751,1745820638643,-151.0,0.00032551,7]
[359211752,1745820638652,-151.0,0.00032551,7]
[359211753,1745820638662,-151.915468,0.00032551,7]
[359211754,1745820638671,-151.0,0.00032551,2]
[359211755,1745820638681,-153.731862,0.00032551,7]
[359211756,1745820638690,-151.0,0.00032551,7]
[359211757,1745820638700,-161.891456,0.00032551,7]
[359211758,1745820638710,-156.322517,0.00032551,7]
[359211759,1745820638719,-151.0,0.00032551,7]
[359211760,1745820638729,-151.0,0.00032551,7]
[359211761,1745820638739,-173.823487,0.00032551,7]
[359211762,1745820638748,-154.110854,0.00032551,7]
[359211763,1745820638758,-949.210688,0.00032551,7]
[359211764,1745820638768,-949.210688,0.00032551,7]
[359211765,1745820638777,-160.0,0.00032551,7]
[359211766,1745820638788,-160.0,0.00032551,7]
[359211767,1745820638803,-840.59878455,0.00032551,7]
[359211768,1745820638813,-153.526235,0.00032561,7]
[359211769,1745820638823,-151.0,0.00032561,7]
[359211770,1745820638833,-156.748764,0.00032561,7]
[359211771,1745820638843,-151.0,0.00032561,7]
[359211772,1745820638853,-151.0,0.00032561,7]
[359211773,1745820638863,-12586.92143865,0.00032561,7]
[359211774,1745820638873,-151.0,0.00032561,7]
[359211775,1745820638883,-151.0,0.00032561,7]
[359211776,1745820638895,-421.20781996,0.00032561,7]
[359211777,1745820638907,-151.0,0.00032561,7]
[359211778,1745820638917,-151.0,0.00032561,7]
[359211779,1745820638930,-267.398665,0.00032561,7]
[359211780,1745820638940,-267.398665,0.00032561,7]
[359211781,1745820638950,-180.631257,0.00032561,7]
[359211782,1745820638959,-213.744115,0.00032561,2]
[359211783,1745820638968,-213.744115,0.00032561,2]
[359211784,1745820638978,-151.0,0.00032561,7]
[359211785,1745820638987,-156.867049,0.00032561,7]
[359211786,1745820638996,-151.0,0.00032561,7]
[359211787,1745820639006,-151.0,0.00032561,7]
[359211788,1745820639016,-30109.05921011,0.00032571,2]
[359211789,1745820639025,-500.0,0.00032573,5]
[359211790,1745820639035,-500.25181227,0.00032573,5]
[359211791,1745820639045,-500.0,0.00032573,5]
[359211792,1745820639055,-151.0,0.000326,10]
[359211793,1745820639065,-156.390972,0.0003269,7]
[359211794,1745820639074,-151.0,0.0003269,7]
[359211795,1745820639084,-151.0,0.0003269,2]
[359211796,1745820639094,-151.0,0.0003269,7]
[359211797,1745820639103,-151.0,0.0003269,7]
[359211798,1745820639112,-151.0,0.0003269,7]
[359211799,1745820639121,-154.110854,0.0003269,7]
[359211800,1745820639131,-949.210688,0.0003269,7]
[359211801,1745820639141,-949.210688,0.0003269,7]
[359211802,1745820639150,-249.208118,0.0003269,7]
[359211803,1745820639160,-151.0,0.0003269,7]
[359211805,1745820639169,-157.288825,0.0003269,7]
[359211806,1745820639179,-267.398665,0.0003269,7]
[359211807,1745820639188,-267.398665,0.0003269,7]
[359211808,1745820639197,-2128.0,0.000327,2]
[359211809,1745820639207,-2128.0,0.000327,2]
[359211810,1745820639217,-2128.0,0.000327,2]
[359211811,1745820639227,-2128.0,0.000327,2]
[359211812,1745820639236,-2128.0,0.000327,2]
[359211813,1745820639246,-151.0,0.000327,14]
[359211814,1745820639255,-213.744115,0.000327,2]
[359211815,1745820639264,-213.744115,0.000327,2]
[359211816,1745820639274,-151.0,0.000327,7]
[359211817,1745820639283,-151.0,0.000327,7]
[359211818,1745820639292,-262.71423197,0.00032728,10]
[359211819,1745820639302,-840.35238838,0.00032761,2]
[359211820,1745820639311,-12586.92143865,0.00032761,2]
[359211821,1745820639320,-160.0,0.00032761,2]
[359211822,1745820639330,-421.20781996,0.00032761,2]
[359211823,1745820639339,-160.0,0.00032761,2]
[359211824,1745820639348,-151.0,0.0003277,7]
[359211825,1745820639358,-151.0,0.00032772,7]
[359211826,1745820639367,-160.0,0.00032772,2]
[359211827,1745820639376,-151.0,0.00032783,7]
[359211828,1745820639385,-151.0,0.00032787,7]
[359211829,1745820639394,-151.0,0.00032793,7]
[359211830,1745820639404,-151.0,0.000328,13]
[359211831,1745820639413,-158.04,0.000328,31]
[359211832,1745820639422,-158.04,0.000328,31]
[359211833,1745820639431,-151.0,0.000328,13]
[359211834,1745820639440,-1000.0,0.00032846,5]
[359211835,1745820639449,-367.0,0.0003286,33]
[359211836,1745820639458,-151.0,0.00032866,7]
[359211837,1745820639468,-151.0,0.00032866,7]
[359211838,1745820639477,-151.0,0.00032866,2]
[359211839,1745820639487,-151.0,0.00032866,7]
[359211840,1745820639497,-280.646344,0.00032866,7]
[359211841,1745820639507,-151.0,0.00032866,7]
[359211842,1745820639516,-154.110854,0.00032866,7]
[359211843,1745820639526,-949.210688,0.00032866,7]
[359211844,1745820639535,-949.210688,0.00032866,7]
[359211845,1745820639545,-151.0,0.00032866,7]
[359211846,1745820639555,-500.0,0.00032873,5]
[359211847,1745820639565,-501.30879091,0.00032873,5]
[359211848,1745820639574,-501.58616856,0.00032873,5]
[359211849,1745820639583,-500.0,0.00032873,5]
[359211850,1745820639592,-500.0,0.00032873,5]
[359211851,1745820639602,-500.74727161,0.00032873,5]
[359211852,1745820639612,-500.48975104,0.00032873,5]
[359211853,1745820639621,-399.59979186,0.00032873,5]
[359211854,1745820639631,-500.56888334,0.00032873,5]
[359211855,1745820639640,-500.0,0.00032873,3]
[359211856,1745820639649,-500.0,0.00032873,5]
[359211857,1745820639659,-155.654756,0.00032873,7]
[359211858,1745820639669,-160.0,0.00032875,10]
[359211859,1745820639678,-160.0,0.00032876,7]
[359211860,1745820639687,-160.0,0.00032876,7]
[359211861,1745820639697,-200.0,0.00032876,2]
[359211862,1745820639706,-500.42114207,0.00032876,2]
[359211863,1745820639715,-500.55617725,0.00032876,2]
[359211864,1745820639725,-501.23047423,0.00032876,2]
[359211865,1745820639734,-254.40238432,0.00032876,2]
[359211866,1745820639743,-400.0,0.00032876,2]
[359211867,1745820639753,-500.0,0.00032876,2]
[359211868,1745820639762,-500.88045846,0.00032876,2]
[359211869,1745820639772,-500.0,0.00032876,2]
[359211870,1745820639781,-500.0,0.00032876,2]
[359211871,1745820639791,-500.0,0.00032876,2]
[359211872,1745820639802,-500.0,0.00032876,2]
[359211873,1745820639812,-500.0,0.00032876,2]
[359211874,1745820639821,-500.0,0.00032876,2]
[359211875,1745820639831,-500.0,0.00032876,2]
[359211876,1745820639842,-500.0,0.00032876,2]
[359211877,1745820639851,-500.0,0.00032876,2]
[359211878,1745820639861,-500.0,0.00032876,2]
[359211880,1745820639871,-500.0,0.00032876,2]
[359211881,1745820639881,-529.7548822,0.00032876,2]
[359211882,1745820639892,-500.0,0.00032876,2]
[359211883,1745820639902,-485.80910276,0.00032876,2]
[359211884,1745820639911,-500.94164558,0.00032876,2]
[359211885,1745820639921,-519.3986597,0.00032876,2]
[359211887,1745820639931,-400.0,0.00032876,2]
[359211888,1745820639940,-500.61057409,0.00032876,2]
[359211889,1745820639950,-514.80542876,0.00032876,2]
[359211890,1745820639962,-400.0,0.00032876,2]
[359211893,1745820640086,-280.28709489,0.00032876,2]
[359211894,1745820640096,-400.0,0.00032876,2]
[359211895,1745820640105,-508.04224845,0.00032876,2]
[359211896,1745820640115,-503.71591861,0.00032876,2]
[359211897,1745820640124,-400.0,0.00032876,2]
[359211898,1745820640132,-500.77387043,0.00032876,2]
[359211899,1745820640141,-500.0,0.00032876,2]
[359211900,1745820640150,-400.0,0.00032876,2]
[359211901,1745820640159,-503.47947861,0.00032876,2]
[359211902,1745820640169,-502.52843099,0.00032876,2]
[359211903,1745820640178,-1000.0,0.00032876,2]
[359211904,1745820640187,-400.0,0.00032876,2]
[359211906,1745820640196,-200.0,0.00032876,2]
[359211908,1745820640205,-504.71495806,0.00032876,2]
[359211910,1745820640214,-627.23,0.00032876,2]
[359211913,1745820640223,-627.23,0.00032876,2]
[359211914,1745820640233,-627.23,0.00032876,2]
[359211916,1745820640242,-627.23,0.00032876,2]
[359211917,1745820640257,-627.23,0.00032876,2]
[359211919,1745820640266,-627.23,0.00032876,2]
[359211920,1745820640274,-627.23,0.00032876,2]
[359211921,1745820640283,-627.23,0.00032876,2]
[359211922,1745820640292,-627.23,0.00032876,2]
[359211923,1745820640301,-627.23,0.00032876,2]
[359211924,1745820640310,-627.23,0.00032876,2]
[359211925,1745820640319,-627.23,0.00032876,2]
[359211926,1745820640329,-627.23,0.00032876,2]
[359211927,1745820640338,-627.23,0.00032876,2]
[359211928,1745820640347,-627.23,0.00032876,2]
[359211929,1745820640358,-627.23,0.00032876,2]
[359211930,1745820640368,-627.23,0.00032876,2]
[359211931,1745820640378,-627.23,0.00032876,2]
[359211932,1745820640389,-627.23,0.00032876,2]
[359211933,1745820640399,-627.23,0.00032876,2]
[359211934,1745820640409,-627.23,0.00032876,2]
[359211935,1745820640418,-627.23,0.00032876,2]
[359211936,1745820640428,-627.23,0.00032876,2]
[359211937,1745820640438,-627.3619865,0.00032876,2]
[359211938,1745820640447,-400.0,0.00032876,2]
[359211939,1745820640457,-400.0,0.00032876,2]
[359211940,1745820640467,-500.0,0.00032876,2]
[359211941,1745820640475,-400.0,0.00032876,2]
[359211942,1745820640485,-413.28969705,0.00032876,2]
[359211943,1745820640496,-400.0,0.00032876,2]
[359211944,1745820640505,-500.0,0.00032876,2]
[359211945,1745820640516,-400.0,0.00032876,2]
[359211946,1745820640525,-500.0,0.00032876,2]
[359211947,1745820640534,-500.0,0.00032876,2]
[359211948,1745820640543,-500.0,0.00032876,2]
[359211949,1745820640552,-500.0,0.00032876,2]
[359211950,1745820640563,-152.28036513,0.00032876,2]
[359211951,1745820640572,-400.0,0.00032876,2]
[359211952,1745820640581,-400.0,0.00032876,2]
[359211953,1745820640592,-400.0,0.00032876,2]
[359211954,1745820640601,-400.0,0.00032876,2]
[359211955,1745820640612,-400.0,0.00032876,2]
[359211956,1745820640622,-400.0,0.00032876,2]
[359211957,1745820640631,-400.0,0.00032876,2]
[359211958,1745820640640,-400.0,0.00032876,2]
[359211959,1745820640649,-400.0,0.00032876,2]
[359211960,1745820640658,-400.0,0.00032876,2]
[359211961,1745820640668,-400.0,0.00032876,2]
[359211962,1745820640678,-400.0,0.00032876,2]
[359211963,1745820640687,-400.0,0.00032876,2]
[359211964,1745820640697,-400.0,0.00032876,2]
[359211965,1745820640706,-400.0,0.00032876,2]
[359211966,1745820640715,-400.0,0.00032876,2]
[359211967,1745820640724,-400.0,0.00032876,2]
[359211968,1745820640734,-487.20698309,0.00032876,2]
[359211969,1745820640743,-400.0,0.00032876,2]
[359211970,1745820640754,-400.0,0.00032876,2]
[359211971,1745820640763,-400.0,0.00032876,2]
[359211972,1745820640772,-400.0,0.00032876,2]
[359211973,1745820640781,-500.0,0.00032876,2]
[359211974,1745820640791,-303.94608064,0.00032876,2]
[359211975,1745820640803,-400.0,0.00032876,2]
[359211976,1745820640812,-400.0,0.00032876,2]
[359211977,1745820640821,-151.0,0.00032876,7]
[359211978,1745820640831,-152.856346,0.00032876,7]
[359211979,1745820640841,-400.0,0.00032876,2]
[359211980,1745820640850,-501.34391919,0.00032876,2]
[359211981,1745820640859,-400.0,0.00032876,2]
[359211982,1745820640870,-509.28008889,0.00032876,2]
[359211983,1745820640879,-400.0,0.00032876,2]
[359211984,1745820640888,-400.0,0.00032876,2]
[359211985,1745820640897,-515.57844095,0.00032876,2]
[359211986,1745820640906,-400.0,0.00032876,2]
[359211987,1745820640915,-501.94702975,0.00032876,2]
[359211988,1745820640924,-400.0,0.00032876,2]
[359211989,1745820640934,-516.12190053,0.00032876,2]
[359211990,1745820640943,-400.0,0.00032876,2]
[359211991,1745820640952,-400.0,0.00032876,2]
[359211992,1745820640962,-400.0,0.00032876,2]
[359211993,1745820640971,-158.008549,0.00032876,7]
[359211994,1745820640981,-400.0,0.00032876,2]
[359211995,1745820640990,-507.34221166,0.00032876,2]
[359211996,1745820640999,-400.0,0.00032876,2]
[359211997,1745820641008,-400.0,0.00032876,2]
[359211998,1745820641018,-503.23891942,0.00032876,2]
[359211999,1745820641027,-400.0,0.00032876,2]
[359212000,1745820641036,-400.0,0.00032876,2]
[359212001,1745820641046,-400.0,0.00032876,2]
[359212002,1745820641057,-225.5729826,0.00032876,2]
[359212003,1745820641067,-400.0,0.00032876,2]
[359212004,1745820641076,-400.0,0.00032876,2]
[359212005,1745820641086,-512.06623691,0.00032876,2]
[359212006,1745820641095,-400.0,0.00032876,2]
[359212007,1745820641104,-400.0,0.00032876,2]
[359212008,1745820641113,-400.0,0.00032876,2]
[359212009,1745820641123,-506.46723415,0.00032876,2]
[359212010,1745820641132,-400.0,0.00032876,2]
[359212011,1745820641142,-400.0,0.00032876,2]
[359212012,1745820641152,-400.0,0.00032876,2]
[359212013,1745820641162,-400.0,0.00032876,2]
[359212014,1745820641171,-505.01873516,0.00032876,2]
[359212015,1745820641180,-466.67,0.00032876,2]
[359212016,1745820641189,-400.0,0.00032876,2]
[359212017,1745820641198,-400.0,0.00032876,2]
[359212018,1745820641207,-400.0,0.00032876,2]
[359212019,1745820641216,-515.58592454,0.00032876,2]
[359212020,1745820641225,-400.0,0.00032876,2]
[359212021,1745820641234,-400.0,0.00032876,2]
[359212022,1745820641243,-507.88392715,0.00032876,2]
[359212023,1745820641253,-506.24852602,0.00032876,2]
[359212024,1745820641266,-400.0,0.00032876,2]
[359212025,1745820641275,-400.0,0.00032876,2]
[359212026,1745820641284,-400.0,0.00032876,2]
[359212027,1745820641293,-352.63369306,0.00032876,2]
[359212028,1745820641302,-400.0,0.00032876,2]
[359212029,1745820641311,-500.88366046,0.00032876,2]
[359212030,1745820641320,-400.0,0.00032876,2]
[359212031,1745820641330,-400.0,0.00032876,2]
[359212032,1745820641339,-400.0,0.00032876,2]
[359212033,1745820641348,-400.0,0.00032876,2]